bitfinex-derivatives/quotes_BTCF0:USTF0_20250827
["timestamp","ask_amount","ask_price","bid_price","bid_amount"]
[1756300275417,0.58639,111180.0,111170.0,0.96093937]
[1756300275617,0.58639,111180.0,111170.0,1.83013937]
[1756300276419,0.58639,111180.0,111170.0,0.96093937]
[1756300276621,0.58639,111180.0,111170.0,1.82985937]
[1756300277620,0.58639,111180.0,111170.0,0.96093937]
[1756300277921,0.64095,111180.0,111170.0,1.82873937]
[1756300278617,0.67955,111180.0,111170.0,0.96093937]
[1756300278817,0.67955,111180.0,111170.0,1.82829937]
[1756300279518,0.60901,111180.0,111170.0,1.82829937]
[1756300279718,0.58639,111180.0,111170.0,0.96093937]
[1756300280022,0.64095,111180.0,111170.0,1.82785937]
[1756300280322,0.64095,111180.0,111170.0,1.38436644]
[1756300280523,0.64095,111180.0,111170.0,1.82785937]
[1756300280925,0.67955,111180.0,111170.0,1.82785937]
[1756300281425,0.60901,111180.0,111170.0,1.82785937]
[1756300281823,0.67955,111180.0,111170.0,1.82785937]
[1756300283227,0.69808,111180.0,111170.0,1.82709937]
[1756300284018,0.69808,111180.0,111170.0,0.96093937]
[1756300284223,0.69808,111180.0,111170.0,1.38344644]
[1756300284424,0.7880167,111180.0,111170.0,0.51744644]
[1756300284625,1.23150963,111180.0,111170.0,1.38316644]
[1756300284826,0.69808,111180.0,111170.0,1.38316644]
[1756300285921,0.69808,111180.0,111170.0,1.38312644]
[1756300286428,1.14157293,111180.0,111170.0,1.38312644]
[1756300286721,0.69808,111180.0,111170.0,1.38312644]
[1756300287228,0.69808,111180.0,111170.0,0.51744644]
[1756300287427,0.69808,111180.0,111170.0,1.38312644]
[1756300288827,0.69808,111180.0,111170.0,0.51744644]
[1756300289128,0.69808,111180.0,111170.0,1.38196644]
[1756300289326,0.69808,111180.0,111170.0,1.38192644]
[1756300289525,0.69808,111180.0,111170.0,0.51744644]
[1756300289725,0.69808,111180.0,111170.0,1.38192644]
[1756300290028,1.14157293,111180.0,111170.0,1.38192644]
[1756300290722,0.95729145,111180.0,111170.0,1.35370644]
[1756300290930,0.95729145,111180.0,111170.0,1.38108644]
[1756300291235,0.51379852,111180.0,111170.0,1.38108644]
[1756300291928,0.95729145,111180.0,111170.0,1.38108644]
[1756300292530,0.51379852,111180.0,111170.0,1.38108644]
[1756300292732,0.62074852,111180.0,111170.0,1.38108644]
[1756300293128,0.45261852,111180.0,111170.0,1.82457937]
[1756300293325,0.45261852,111180.0,111170.0,2.07457937]
[1756300294034,0.44397643,111180.0,111170.0,2.07457937]
[1756300294927,0.44397643,111180.0,111170.0,2.23598977]
[1756300295129,0.47304643,111180.0,111170.0,1.79249684]
[1756300295329,0.47304643,111180.0,111170.0,2.23598977]
[1756300295525,0.44397643,111180.0,111170.0,2.23598977]
[1756300295833,0.44397643,111180.0,111170.0,2.07457937]
[1756300297828,0.61107643,111180.0,111170.0,0.76712644]
[1756300298030,0.61107643,111180.0,111170.0,2.07345937]
[1756300298639,0.57737643,111180.0,111170.0,0.51712644]
[1756300298935,1.05456936,111180.0,111170.0,1.38084644]
[1756300299336,1.14450676,111180.0,111170.0,1.38084644]
[1756300299737,1.05456936,111180.0,111170.0,1.38084644]
[1756300300135,0.70101383,111180.0,111170.0,0.51712644]
[1756300300334,1.14450676,111180.0,111170.0,1.35286644]
[1756300300536,1.14450676,111180.0,111170.0,1.35274644]
[1756300301533,1.14450676,111180.0,111170.0,1.56214494]
[1756300301838,1.14450676,111180.0,111170.0,0.69914564]
[1756300302141,1.14450676,111180.0,111170.0,1.45349014]
[1756300302334,1.14450676,111180.0,111170.0,1.70534889]
[1756300302637,1.14450676,111180.0,111170.0,0.84234889]
[1756300302838,1.14450676,111180.0,111170.0,1.49543039]
[1756300303441,1.39450676,111180.0,111170.0,1.49543039]
[1756300304040,1.39450676,111180.0,111170.0,1.49503039]
[1756300304631,1.39450676,111180.0,111170.0,0.3608]
[1756300304835,1.39450676,111180.0,111160.0,0.61266095]
[1756300305035,0.70053843,111170.0,111160.0,0.16191325]
[1756300305242,0.70053843,111170.0,111160.0,1.02315325]
[1756300305539,0.70053843,111170.0,111160.0,0.86124]
[1756300306236,0.70053843,111170.0,111160.0,0.9511936]
[1756300307246,1.03753843,111170.0,111160.0,0.9511936]
[1756300309939,1.03753843,111170.0,111160.0,0.86124]
[1756300310142,1.03753843,111170.0,111160.0,0.9511936]
[1756300310342,1.14448843,111170.0,111160.0,0.86124]
[1756300310539,1.14448843,111170.0,111160.0,0.9705336]
[1756300310738,0.61105,111170.0,111160.0,0.9979136]
[1756300310947,0.61105,111170.0,111160.0,1.3587136]
[1756300311339,0.57735,111170.0,111160.0,1.3587136]
[1756300311650,0.49901,111170.0,111160.0,1.80220653]
[1756300311845,0.49901,111170.0,111160.0,1.3587136]
[1756300312045,0.49901,111170.0,111160.0,1.80220653]
[1756300312248,0.49901,111170.0,111160.0,1.3587136]
[1756300312448,0.49901,111170.0,111160.0,1.80220653]
[1756300314149,0.46994,111170.0,111160.0,1.80220653]
[1756300315451,0.49901,111170.0,111160.0,1.80220653]
[1756300317753,0.46994,111170.0,111160.0,1.80220653]
[1756300318148,0.5889556,111170.0,111160.0,1.80220653]
[1756300318752,0.7009956,111170.0,111160.0,1.26548]
[1756300319052,1.14448853,111170.0,111160.0,1.26548]
[1756300319251,0.7009956,111170.0,111160.0,1.26548]
[1756300319855,0.7009956,111170.0,111160.0,1.3554337]
[1756300321051,0.52008,111170.0,111160.0,1.79892663]
[1756300321854,0.52008,111170.0,111160.0,1.96083988]
[1756300322150,0.59298,111170.0,111160.0,1.96083988]
[1756300322556,0.59298,111170.0,111160.0,1.79892663]
[1756300323353,0.7025456,111170.0,111160.0,0.94096663]
[1756300323547,0.7025456,111170.0,111160.0,1.26572]
[1756300323951,1.14603853,111170.0,111160.0,1.26572]
[1756300324450,1.14603853,111170.0,111160.0,1.3556737]
[1756300324857,0.7025456,111170.0,111160.0,1.3556737]
[1756300326257,0.6126,111170.0,111160.0,1.3556737]
[1756300326451,0.6126,111170.0,111160.0,1.51758695]
[1756300327460,0.6126,111170.0,111160.0,1.3556737]
[1756300327654,0.49101,111170.0,111160.0,1.79916663]
[1756300327854,0.44395,111170.0,111160.0,2.04916663]
[1756300329861,0.44395,111170.0,111160.0,2.21107988]
[1756300331163,0.44395,111170.0,111160.0,1.76758695]
[1756300331362,0.44395,111170.0,111160.0,2.21107988]
[1756300332361,0.44395,111170.0,111160.0,2.21085947]
[1756300333162,0.44395,111170.0,111160.0,2.04916663]
[1756300335761,0.44395,111170.0,111160.0,2.49265956]
[1756300335966,0.44395,111170.0,111160.0,2.65435423]
[1756300339775,0.44395,111170.0,111160.0,2.49265956]
[1756300340176,0.44395,111170.0,111160.0,2.70205806]
[1756300341271,0.41625,111170.0,111160.0,2.70205806]
[1756300341475,0.41625,111170.0,111160.0,2.49265956]
[1756300342980,0.10695,111170.0,111160.0,2.49265956]
[1756300343874,0.10695,111170.0,111160.0,2.70269768]
[1756300344268,0.0931,111200.0,111170.0,0.0899457]
[1756300344577,0.14812,111200.0,111190.0,1.27509457]
[1756300344979,0.45742,111200.0,111190.0,1.27509457]
[1756300346282,0.45742,111200.0,111190.0,1.34589961]
[1756300346881,0.48004,111200.0,111190.0,1.34589961]
[1756300347178,0.48004,111200.0,111190.0,2.20001961]
[1756300347375,0.48104,111200.0,111190.0,2.20001961]
[1756300347576,0.48004,111200.0,111190.0,2.20001961]
[1756300348183,0.47804,111200.0,111190.0,2.20001961]
[1756300348378,0.47904,111200.0,111190.0,2.20001961]
[1756300348579,0.47904,111200.0,111190.0,2.20923419]
[1756300349580,0.47804,111200.0,111190.0,2.20923419]
[1756300349980,0.47804,111200.0,111190.0,2.37074824]
[1756300350875,0.47804,111200.0,111190.0,2.20923419]
[1756300351076,0.47804,111200.0,111190.0,1.35511419]
[1756300351271,0.47804,111200.0,111190.0,2.20915419]
[1756300352383,0.47804,111200.0,111190.0,2.20911419]
[1756300353083,0.47804,111200.0,111190.0,1.35511419]
[1756300353285,0.47804,111200.0,111190.0,2.20911419]
[1756300354583,0.47804,111200.0,111190.0,2.20907419]
[1756300355378,0.47804,111200.0,111190.0,1.66643718]
[1756300355573,1.17153293,111200.0,111190.0,1.75632668]
[1756300355979,0.72804,111200.0,111190.0,1.75632668]
[1756300356184,0.72804,111200.0,111190.0,2.19981961]
[1756300359878,0.72804,111200.0,111190.0,1.34589961]
[1756300360079,0.72804,111200.0,111190.0,2.19973961]
[1756300360585,0.72673,111200.0,111190.0,2.19973961]
[1756300360778,0.38552,111200.0,111190.0,2.19973961]
[1756300361085,0.36408,111200.0,111190.0,2.19973961]
[1756300361584,0.33895,111200.0,111190.0,2.19973961]
[1756300361788,0.3103,111200.0,111190.0,2.44973961]
[1756300361974,0.3103,111200.0,111190.0,2.61125366]
[1756300363484,0.001,111200.0,111190.0,2.61125366]
[1756300363674,0.001,111200.0,111190.0,2.61121366]
[1756300363878,0.03061,111200.0,111190.0,2.61121366]
[1756300364680,0.03061,111200.0,111190.0,1.75741366]
[1756300364983,0.03061,111200.0,111190.0,2.61117366]
[1756300367487,0.03061,111200.0,111190.0,1.75741366]
[1756300367683,0.10079,111200.0,111190.0,2.36109366]
[1756300367985,0.10079,111200.0,111190.0,1.75608668]
[1756300368185,0.10079,111200.0,111190.0,1.34589961]
[1756300368385,0.10079,111200.0,111190.0,2.19953961]
[1756300368586,0.86199293,111200.0,111190.0,0.90240668]
[1756300368782,0.4185,111200.0,111190.0,1.75604668]
[1756300369190,0.4185,111200.0,111190.0,2.19953961]
[1756300371783,0.4185,111200.0,111190.0,2.36105366]
[1756300372088,0.7278,111200.0,111190.0,1.50741366]
[1756300372289,0.7278,111200.0,111190.0,2.36101366]
[1756300373090,0.4778,111200.0,111190.0,2.36101366]
[1756300378890,0.27873439,111200.0,111190.0,2.46086366]
[1756300379090,0.27873439,111200.0,111190.0,2.50938773]
[1756300380094,0.27873439,111200.0,111190.0,2.0658948]
[1756300380297,0.27873439,111200.0,111190.0,2.50938773]
[1756300380896,0.37782439,111200.0,111190.0,2.50938773]
[1756300383392,0.46774589,111200.0,111190.0,2.0658948]
[1756300383599,0.91123882,111200.0,111190.0,2.0655748]
[1756300383899,0.91123882,111200.0,111190.0,2.01725966]
[1756300384804,0.91123882,111200.0,111190.0,1.85553668]
[1756300385503,0.91123882,111200.0,111190.0,1.78473164]
[1756300387603,0.92045917,111200.0,111190.0,1.78473164]
[1756300389104,0.46774589,111200.0,111190.0,1.78473164]
[1756300389300,0.34593439,111200.0,111190.0,2.22822457]
[1756300389700,0.37782439,111200.0,111190.0,2.22822457]
[1756300390100,0.46774589,111200.0,111190.0,2.22822457]
[1756300390307,0.37782439,111200.0,111190.0,2.22822457]
[1756300390604,0.37782439,111200.0,111190.0,1.78473164]
[1756300391100,0.37782439,111200.0,111190.0,1.99476976]
[1756300391296,0.46774589,111200.0,111190.0,1.99476976]
[1756300391502,0.37782439,111200.0,111190.0,1.99476976]
[1756300392707,0.46774579,111200.0,111190.0,1.99476976]
[1756300393210,0.46774579,111200.0,111190.0,2.43826269]
[1756300393804,0.91123872,111200.0,111190.0,1.14148976]
[1756300394110,0.91123872,111200.0,111190.0,1.90448026]
[1756300394313,0.91123872,111200.0,111190.0,1.05156026]
[1756300394511,0.91123872,111200.0,111190.0,0.39184971]
[1756300394512,1.59006872,111200.0,111190.0,0.39184971]
[1756300394802,2.36356165,111200.0,111190.0,0.16173945]
[1756300395000,1.59006872,111200.0,111190.0,0.16173945]
[1756300395201,0.0899295,111190.0,111180.0,1.28203]
[1756300395506,0.63251243,111190.0,111180.0,1.31357]
[1756300395709,0.63251243,111190.0,111180.0,0.46065]
[1756300396012,0.70054243,111190.0,111180.0,1.27898]
[1756300396308,0.70054243,111190.0,111180.0,1.4687676]
[1756300397210,0.70054243,111190.0,111180.0,1.4697676]
[1756300397710,0.97934243,111190.0,111180.0,1.4697676]
[1756300399410,0.98034243,111190.0,111180.0,1.4697676]
[1756300400513,0.98234243,111190.0,111180.0,1.4687676]
[1756300400812,0.5388495,111190.0,111180.0,1.4687676]
[1756300401913,0.5388495,111190.0,111180.0,1.63050705]
[1756300402609,0.5388495,111190.0,111180.0,1.4687676]
[1756300404315,0.5388495,111190.0,111180.0,1.37883]
[1756300404914,0.98234243,111190.0,111180.0,1.37883]
[1756300405811,0.98234243,111190.0,111180.0,1.54056945]
[1756300406313,0.5388495,111190.0,111180.0,1.63050705]
[1756300406513,0.98234243,111190.0,111180.0,1.63050705]
[1756300407615,0.98234243,111190.0,111180.0,1.54056945]
[1756300409118,0.98234243,111190.0,111180.0,1.63050705]
[1756300413117,1.54234243,111190.0,111180.0,0.16173945]
[1756300413315,1.23234243,111190.0,111180.0,0.52253945]
[1756300413510,1.23234243,111190.0,111180.0,0.16173945]
[1756300413718,1.23234243,111190.0,111180.0,0.38622]
[1756300414326,1.23234243,111190.0,111180.0,0.52873]
[1756300415224,0.95045243,111190.0,111180.0,0.6186676]
[1756300415426,0.98538243,111190.0,111180.0,0.6186676]
[1756300420035,0.5418895,111190.0,111180.0,0.6186676]
[1756300420335,0.98538243,111190.0,111180.0,0.6186676]
[1756300420732,0.98538243,111190.0,111180.0,0.52873]
[1756300422138,0.90402783,111190.0,111180.0,0.6186676]
[1756300423239,0.33004,111190.0,111180.0,1.06216053]
[1756300423434,0.33004,111190.0,111180.0,1.22389998]
[1756300423435,0.3717295,111190.0,111180.0,1.22389998]
[1756300423637,0.2818,111190.0,111180.0,1.47389998]
[1756300425141,0.003,111190.0,111180.0,1.47389998]
[1756300425441,0.2818,111190.0,111180.0,1.47389998]
[1756300426741,0.2818,111190.0,111180.0,2.32573998]
[1756300426936,0.70704243,111190.0,111180.0,0.69046945]
[1756300427143,0.70704243,111190.0,111180.0,0.65846945]
[1756300427345,0.70704243,111190.0,111180.0,1.46991945]
[1756300428046,0.70704243,111190.0,111180.0,1.54230945]
[1756300428550,0.70704243,111190.0,111180.0,0.69046945]
[1756300428736,0.70704243,111190.0,111180.0,1.54222945]
[1756300429649,0.70704243,111190.0,111180.0,0.69046945]
[1756300429855,0.98584243,111190.0,111180.0,1.51018945]
[1756300430142,1.23584243,111190.0,111180.0,0.59545945]
[1756300430447,1.96664243,111190.0,111180.0,0.16173945]
[1756300430745,0.0899376,111180.0,111170.0,1.45081812]
[1756300430946,0.63743053,111180.0,111170.0,1.52320812]
[1756300431148,0.63743053,111180.0,111170.0,1.4031157]
[1756300431947,0.4727376,111180.0,111170.0,1.4031157]
[1756300432148,0.91623053,111180.0,111170.0,1.4031157]
[1756300432547,0.4727376,111180.0,111170.0,1.4031157]
[1756300432754,0.91623053,111180.0,111170.0,1.4031157]
[1756300433449,0.91723053,111180.0,111170.0,1.4031157]
[1756300434349,0.91823053,111180.0,111170.0,1.31317]
[1756300436453,0.0899457,111170.0,111160.0,0.46309925]
[1756300436650,0.70405863,111170.0,111160.0,1.40029925]
[1756300437748,0.2319957,111170.0,111160.0,1.40029925]
[1756300437948,0.70405863,111170.0,111160.0,1.40029925]
[1756300438144,0.70405863,111170.0,111160.0,1.40129925]
[1756300439054,0.67548863,111170.0,111160.0,1.40129925]
[1756300439249,0.95428863,111170.0,111160.0,1.40129925]
[1756300439554,0.91935863,111170.0,111160.0,1.40129925]
[1756300439750,0.3687457,111170.0,111160.0,1.93474578]
[1756300440055,0.3687455,111170.0,111160.0,2.18474578]
[1756300440254,0.2788,111170.0,111160.0,2.18474578]
[1756300440656,0.3687456,111170.0,111160.0,2.18474578]
[1756300440857,0.4570556,111170.0,111160.0,0.54981925]
[1756300441058,0.4901156,111170.0,111160.0,1.40109925]
[1756300441260,0.3687455,111170.0,111160.0,1.93454578]
[1756300441652,0.2788,111170.0,111160.0,2.18454578]
[1756300442257,0.3687456,111170.0,111160.0,1.74105285]
[1756300442459,0.3687456,111170.0,111160.0,2.18454578]
[1756300443959,0.2788,111170.0,111160.0,2.18454578]
[1756300444956,0.0899431,111180.0,111160.0,2.08385578]
[1756300445151,0.0899345,111190.0,111170.0,1.05762843]
[1756300445357,0.1598745,111190.0,111180.0,1.84448043]
[1756300445659,0.1598745,111190.0,111180.0,1.75454293]
[1756300445859,0.1332145,111190.0,111180.0,1.84448043]
[1756300446061,0.1132145,111190.0,111180.0,1.84448043]
[1756300446261,0.3920145,111190.0,111180.0,1.84448043]
[1756300447161,0.4250745,111190.0,111180.0,1.84448043]
[1756300447654,0.2798,111190.0,111180.0,1.84448043]
[1756300448060,0.2798,111190.0,111180.0,1.4009875]
[1756300448260,0.2798,111190.0,111180.0,1.84448043]
[1756300448663,0.2798,111190.0,111180.0,1.90862043]
[1756300448962,0.2818,111190.0,111180.0,1.90862043]
[1756300449462,0.2818,111190.0,111180.0,2.07035988]
[1756300450664,0.2818,111190.0,111180.0,2.07031988]
[1756300451557,0.2818,111190.0,111180.0,0.77586695]
[1756300451861,0.2818,111190.0,111180.0,0.32512945]
[1756300451862,0.98426233,111190.0,111180.0,0.32512945]
[1756300452067,0.98426233,111190.0,111180.0,1.53676945]
[1756300452567,0.98426233,111190.0,111180.0,1.53672945]
[1756300452760,1.23426233,111190.0,111180.0,1.53668945]
[1756300453063,1.23426233,111190.0,111180.0,1.62662695]
[1756300454568,1.23426233,111190.0,111180.0,1.53668945]
[1756300454864,1.23426233,111190.0,111180.0,0.68592945]
[1756300455066,1.23426233,111190.0,111180.0,1.53656945]
[1756300455266,1.23426233,111190.0,111180.0,0.68592945]
[1756300455461,1.23426233,111190.0,111180.0,1.14248945]
[1756300455664,1.23426233,111190.0,111180.0,1.08285945]
[1756300455866,1.23426233,111190.0,111180.0,0.92112]
[1756300456568,1.23426233,111190.0,111180.0,1.01403]
[1756300456869,1.23426233,111190.0,111180.0,1.1039675]
[1756300458369,1.23426233,111190.0,111180.0,1.01403]
[1756300459058,1.23426233,111190.0,111180.0,1.1039675]
[1756300459568,1.23426233,111190.0,111180.0,1.01403]
[1756300459771,1.23426233,111190.0,111180.0,0.92112]
[1756300459970,1.23426233,111190.0,111180.0,1.01403]
[1756300464975,1.23426233,111190.0,111180.0,1.4647675]
[1756300465371,1.23426233,111190.0,111180.0,1.37483]
[1756300467073,0.1589775,111180.0,111170.0,0.09239]
[1756300467377,0.70247043,111180.0,111170.0,0.52419]
[1756300468476,0.67390043,111180.0,111170.0,0.52419]
[1756300468676,0.67590043,111180.0,111170.0,0.52419]
[1756300468877,0.70447043,111180.0,111170.0,0.52419]
[1756300470480,0.70447043,111180.0,111170.0,0.13011]
[1756300470687,0.95447043,111180.0,111170.0,0.02809]
[1756300472884,0.2545956,111170.0,111160.0,0.05557]
[1756300473188,1.90872853,111170.0,111160.0,0.02944]
[1756300473887,0.1867737,111160.0,111150.0,1.62973269]
[1756300474084,0.63962211,111160.0,111150.0,1.62973269]
[1756300475186,0.63026663,111160.0,111150.0,1.71969439]
[1756300475791,0.62926663,111160.0,111150.0,1.71969439]
[1756300476091,0.63826481,111160.0,111150.0,1.72069439]
[1756300476288,0.91706481,111160.0,111150.0,1.72069439]
[1756300476892,0.90806663,111160.0,111150.0,1.72069439]
[1756300477094,0.90806663,111160.0,111150.0,1.72269439]
[1756300477288,0.4373637,111160.0,111150.0,1.72269439]
[1756300479294,0.44636371,111160.0,111150.0,1.72269439]
[1756300479694,0.44636371,111160.0,111150.0,1.63273269]
[1756300480095,0.88985664,111160.0,111150.0,1.63273269]
[1756300480595,0.88085663,111160.0,111150.0,1.63273269]
[1756300481090,0.94868663,111160.0,111150.0,0.84978269]
[1756300481296,0.94868663,111160.0,111150.0,1.69934269]
[1756300481595,0.94868663,111160.0,111150.0,1.78930439]
[1756300481890,0.5051937,111160.0,111150.0,1.78930439]
[1756300483201,0.51441325,111160.0,111150.0,1.69934269]
[1756300483394,0.5051937,111160.0,111150.0,1.78930439]
[1756300484498,0.4863837,111160.0,111150.0,1.78930439]
[1756300484698,0.4487437,111160.0,111150.0,1.78930439]
[1756300485296,0.4863837,111160.0,111150.0,1.78930439]
[1756300485599,0.92987663,111160.0,111150.0,1.78930439]
[1756300486400,0.4863837,111160.0,111150.0,1.78930439]
[1756300486698,0.89223663,111160.0,111150.0,1.78930439]
[1756300487299,0.4487437,111160.0,111150.0,1.78930439]
[1756300487799,0.4487437,111160.0,111150.0,2.48279732]
[1756300487800,0.2788,111160.0,111150.0,2.48279732]
[1756300488799,0.2788,111160.0,111150.0,2.64453677]
[1756300490300,0.2788,111160.0,111150.0,2.65361601]
[1756300490502,0.2788,111160.0,111150.0,2.49187656]
[1756300490809,0.2085756,111170.0,111160.0,0.2266391]
[1756300491012,0.2273856,111170.0,111160.0,0.5874391]
[1756300491305,0.2273856,111170.0,111160.0,0.6168791]
[1756300491507,0.5061856,111170.0,111160.0,0.6168791]
[1756300492009,0.94967853,111170.0,111160.0,0.6168791]
[1756300492608,0.94967853,111170.0,111160.0,1.4659591]
[1756300493108,0.94967853,111170.0,111160.0,0.6168791]
[1756300493309,0.94967853,111170.0,111160.0,1.4659191]
[1756300494111,0.5061856,111170.0,111160.0,1.4659191]
[1756300494306,0.85973293,111170.0,111160.0,1.4659191]
[1756300495210,0.34663,111170.0,111160.0,1.4659191]
[1756300495409,0.32782,111170.0,111160.0,1.4659191]
[1756300495612,0.2788,111170.0,111160.0,1.4659191]
[1756300495909,0.2788,111170.0,111160.0,1.90941203]
[1756300499302,0.2788,111170.0,111160.0,2.15941203]
[1756300499612,0.2788,111170.0,111160.0,2.32115148]
[1756300500705,0.19521,111170.0,111160.0,2.32115148]
[1756300500906,0.15585,111170.0,111160.0,2.32115148]
[1756300501102,0.06553,111170.0,111160.0,2.15941203]
[1756300501507,0.06553,111170.0,111160.0,1.31037203]
[1756300501706,0.06553,111170.0,111160.0,2.15905203]
[1756300502214,0.06553,111170.0,111160.0,2.32075812]
[1756300503116,0.06553,111170.0,111160.0,2.15905203]
[1756300503315,0.06553,111170.0,111160.0,2.32071875]
[1756300503713,0.16146,111180.0,111170.0,0.1380755]
[1756300503914,0.16146,111180.0,111170.0,0.94236843]
[1756300504117,0.22696,111180.0,111170.0,1.10403515]
[1756300504412,0.0655,111180.0,111170.0,1.10403515]
[1756300504915,0.0355,111180.0,111170.0,1.19236843]
[1756300505120,0.03407,111180.0,111170.0,1.19236843]
[1756300505321,0.03507,111180.0,111170.0,1.19393843]
[1756300505810,0.06245,111180.0,111170.0,2.04245843]
[1756300506016,0.02938,111180.0,111170.0,2.04245843]
[1756300506616,0.02938,111180.0,111170.0,2.04237843]
[1756300506921,0.06664,111180.0,111170.0,2.04237843]
[1756300507121,0.09942,111180.0,111170.0,2.20388602]
[1756300507415,0.16346,111180.0,111170.0,1.51286309]
[1756300507917,0.94689043,111180.0,111170.0,0.38473]
[1756300508115,0.94689043,111180.0,111170.0,1.20916]
[1756300508310,0.94689043,111180.0,111170.0,0.3608]
[1756300508509,0.94689043,111180.0,111160.0,0.52387759]
[1756300508510,0.2514056,111170.0,111160.0,0.16150759]
[1756300508715,0.1314037,111160.0,111150.0,0.77312369]
[1756300508915,0.69490663,111160.0,111150.0,1.62301369]
[1756300509519,0.2514137,111160.0,111150.0,1.62301369]
[1756300509817,0.69490663,111160.0,111150.0,1.62301369]
[1756300510319,0.60495293,111160.0,111150.0,1.78452128]
[1756300511523,0.60495293,111160.0,111150.0,1.78652128]
[1756300511722,0.16146,111160.0,111150.0,1.78652128]
[1756300513122,0.16146,111160.0,111150.0,1.78452128]
[1756300513415,0.16146,111160.0,111150.0,1.78752128]
[1756300514417,0.02738,111160.0,111150.0,2.23101421]
[1756300514622,0.14462,111170.0,111160.0,0.0940337]
[1756300514824,0.19556,111170.0,111160.0,0.89832663]
[1756300515322,0.2855056,111170.0,111160.0,0.4548337]
[1756300515516,0.2855056,111170.0,111160.0,0.36488]
[1756300515723,0.72899853,111170.0,111160.0,1.213]
[1756300517224,0.72899853,111170.0,111160.0,1.3029537]
[1756300518922,0.69489853,111170.0,111160.0,1.3029537]
[1756300519226,0.09142,111170.0,111160.0,1.3029537]
[1756300519424,0.19556,111170.0,111160.0,1.3029537]
[1756300520826,0.12552,111170.0,111160.0,1.3029537]
[1756300521027,0.1583,111170.0,111160.0,1.3029537]
[1756300521425,0.19556,111170.0,111160.0,1.3029537]
[1756300521822,0.2855062,111170.0,111160.0,1.3029537]
[1756300525131,0.2855062,111170.0,111160.0,1.74644663]
[1756300525328,0.2855062,111170.0,111160.0,1.3029537]
[1756300528736,0.2855062,111170.0,111160.0,1.3024337]
[1756300528936,0.2855062,111170.0,111160.0,1.3024343]
[1756300529136,0.72899913,111170.0,111160.0,1.3024343]
[1756300529435,0.72899913,111170.0,111160.0,0.36488]
[1756300529834,0.72899913,111170.0,111160.0,0.84752]
[1756300529835,0.97899913,111170.0,111160.0,0.84752]
[1756300530242,0.0899544,111160.0,111150.0,0.68260269]
[1756300530436,0.69953733,111160.0,111150.0,1.62004519]
[1756300531735,0.69953733,111160.0,111150.0,1.53008269]
[1756300532434,0.69953733,111160.0,111150.0,1.62004479]
[1756300532635,0.69953733,111160.0,111150.0,1.62204479]
[1756300532836,0.69953733,111160.0,111150.0,1.53208269]
[1756300533232,0.70861452,111160.0,111150.0,1.53308269]
[1756300533539,0.70861452,111160.0,111150.0,1.62304479]
[1756300534338,0.5276477,111160.0,111150.0,1.65460479]
[1756300534531,0.5276477,111160.0,111150.0,1.67361479]
[1756300535129,0.6176021,111160.0,111150.0,1.65460479]
[1756300535439,0.6176021,111160.0,111150.0,1.67361479]
[1756300536441,0.6858621,111160.0,111150.0,1.60544269]
[1756300537336,1.16316917,111160.0,111150.0,1.15028]
[1756300537541,2.09015503,111160.0,111150.0,0.303]
[1756300537939,1.3066621,111160.0,111150.0,0.303]
[1756300539633,0.50236917,111160.0,111150.0,0.39972]
[1756300539833,0.9458621,111160.0,111150.0,0.42447]
[1756300540033,0.9809621,111160.0,111150.0,0.42447]
[1756300540532,1.3417621,111160.0,111150.0,0.37813]
[1756300541040,1.6817621,111160.0,111150.0,0.42447]
[1756300541241,1.3417621,111160.0,111150.0,0.42347]
[1756300541442,1.3427621,111160.0,111150.0,0.42347]
[1756300541635,1.6827621,111160.0,111150.0,0.42347]
[1756300541941,1.3219621,111160.0,111150.0,0.42347]
[1756300542240,1.3219621,111160.0,111150.0,0.37713]
[1756300542434,1.6827621,111160.0,111150.0,0.3]
[1756300542632,1.3327621,111160.0,111150.0,0.33156]
[1756300542934,1.3519621,111160.0,111150.0,0.37713]
[1756300543141,1.3519621,111160.0,111150.0,0.3]
[1756300543340,1.3519621,111160.0,111150.0,0.37713]
[1756300543636,0.9719621,111160.0,111150.0,0.37713]
[1756300543941,0.9819621,111160.0,111150.0,0.40388]
[1756300544142,0.9819621,111160.0,111150.0,0.37713]
[1756300544340,1.3019621,111160.0,111150.0,0.37713]
[1756300544642,1.3019621,111160.0,111150.0,0.3]
[1756300544842,1.3319621,111160.0,111150.0,0.3]
[1756300545338,0.9719621,111160.0,111150.0,0.3]
[1756300545543,0.9819621,111160.0,111150.0,0.3]
[1756300546745,1.1313621,111160.0,111150.0,0.3]
[1756300547343,1.1313621,111160.0,111150.0,0.34557]
[1756300547544,1.1313621,111160.0,111150.0,0.37713]
[1756300549239,1.1313621,111160.0,111150.0,0.42347]
[1756300550044,1.1313621,111160.0,111150.0,0.37713]
[1756300552347,1.9782821,111160.0,111150.0,0.42347]
[1756300553048,1.7282821,111160.0,111150.0,0.42347]
[1756300553247,1.7282821,111160.0,111150.0,0.37713]
[1756300553644,1.7282821,111160.0,111150.0,0.40388]
[1756300554045,1.7282821,111160.0,111150.0,0.42347]
[1756300555848,1.7282821,111160.0,111150.0,0.37713]
[1756300556053,1.7282821,111160.0,111150.0,0.40388]
[1756300556658,0.7319621,111160.0,111150.0,0.69248]
[1756300557659,0.7319621,111160.0,111150.0,0.67347]
[1756300557860,0.7319621,111160.0,111150.0,0.65388]
[1756300558063,0.7319621,111160.0,111150.0,0.67347]
[1756300558457,0.7319621,111160.0,111150.0,0.7824421]
[1756300560757,0.7319621,111160.0,111150.0,0.67347]
[1756300561151,0.9319621,111160.0,111150.0,0.67347]
[1756300561551,0.48846917,111160.0,111150.0,0.7824421]
[1756300561762,0.9319621,111160.0,111150.0,0.7824421]
[1756300562061,0.91188733,111160.0,111150.0,0.7824421]
[1756300562264,0.94523733,111160.0,111150.0,0.7824421]
[1756300562853,0.4683944,111160.0,111150.0,1.58673503]
[1756300563054,0.07456,111160.0,111150.0,1.58673503]
[1756300563364,0.0361,111160.0,111150.0,1.58673503]
[1756300563563,0.06493,111160.0,111150.0,1.58673503]
[1756300564164,0.154884,111160.0,111150.0,1.1432421]
[1756300564364,0.154884,111160.0,111150.0,1.58673503]
[1756300564766,0.06493,111160.0,111150.0,1.58673503]
[1756300565065,0.0361,111160.0,111150.0,1.58673503]
[1756300565261,0.11495,111180.0,111170.0,0.0899459]
[1756300565463,0.2237552,111190.0,111180.0,0.2073578]
[1756300565765,0.4737552,111190.0,111180.0,0.5681578]
[1756300565964,0.5071052,111190.0,111180.0,0.5681578]
[1756300566260,0.41717,111190.0,111180.0,0.5681578]
[1756300566462,0.34472,111190.0,111180.0,1.01165073]
[1756300566764,0.4346498,111190.0,111180.0,1.01165073]
[1756300567167,0.4679998,111190.0,111180.0,1.01165073]